fUSD/lending_fUSD_20250107
["ID","MTS","AMOUNT","RATE_DAILY","PERIOD"]
[348061250,1736289060363,-500.0,0.00010609,2]
[348061251,1736289060373,-500.0,0.00010609,2]
[348061252,1736289060382,-500.0,0.00010609,2]
[348061253,1736289060391,-1408.99,0.00010609,2]
[348061254,1736289060401,-694.44,0.00010609,2]
[348061255,1736289060410,-500.0,0.00010609,2]
[348061256,1736289060420,-500.0,0.00010609,2]
[348061257,1736289060430,-714.85,0.00010609,2]
[348061258,1736289060440,-1161.61,0.00010609,2]
[348061259,1736289060450,-653.73,0.00010609,2]
[348061260,1736289060459,-1767.14,0.00010609,2]
[348061261,1736289060469,-1272.55,0.00010609,2]
[348061262,1736289060479,-852.68,0.00010609,2]
[348061263,1736289060488,-603.18,0.00010609,2]
[348061264,1736289060498,-798.2,0.00010609,2]
[348061265,1736289060508,-500.0,0.00010609,2]
[348061266,1736289060518,-500.0,0.00010609,2]
[348061267,1736289060527,-581.59,0.00010609,2]
[348061268,1736289060537,-1145.93,0.00010609,2]
[348061269,1736289060547,-500.0,0.00010609,2]
[348061270,1736289060557,-692.23,0.00010609,2]
[348061271,1736289060566,-621.05,0.00010609,2]
[348061272,1736289060576,-1335.35,0.00010609,2]
[348061273,1736289060587,-4113.23,0.00010609,2]
[348061274,1736289060598,-505.81,0.00010609,2]
[348061275,1736289060608,-676.58,0.00010609,2]
[348061276,1736289060618,-750.36,0.00010609,2]
[348061277,1736289060628,-920.62,0.00010609,2]
[348061278,1736289060637,-616.41,0.00010609,2]
[348061279,1736289060647,-500.0,0.00010609,2]
[348061280,1736289060656,-938.14,0.00010609,2]
[348061281,1736289060665,-581.9,0.00010609,2]
[348061282,1736289060675,-682.63,0.00010609,2]
[348061283,1736289060684,-1219.26,0.00010609,2]
[348061284,1736289060694,-2206.26,0.00010609,2]
[348061285,1736289060703,-1298.36,0.00010609,2]
[348061286,1736289060713,-906.79,0.00010609,2]
[348061287,1736289060722,-500.0,0.00010609,2]
[348061288,1736289060732,-728.63,0.00010609,2]
[348061289,1736289060741,-721.69,0.00010609,2]
[348061290,1736289060751,-1392.61,0.00010609,2]
[348061291,1736289060760,-562.72,0.00010609,2]
[348061292,1736289060769,-500.0,0.00010609,2]
[348061293,1736289060779,-545.27,0.00010609,2]
[348061294,1736289060788,-500.0,0.00010609,2]
[348061295,1736289060797,-1319.55,0.00010609,2]
[348061296,1736289060807,-1199.74,0.00010609,2]
[348061297,1736289060816,-5915.85,0.00010609,2]
[348061298,1736289060825,-500.0,0.00010609,2]
[348061299,1736289060835,-500.0,0.00010609,2]
[348061300,1736289060845,-1352.72,0.00010609,2]
[348061301,1736289060855,-820.14,0.00010609,2]
[348061302,1736289060864,-500.0,0.00010609,2]
[348061303,1736289060874,-4685.7,0.00010609,2]
[348061304,1736289060883,-526.8,0.00010609,2]
[348061305,1736289060892,-826.52,0.00010609,2]
[348061306,1736289060902,-1489.12,0.00010609,2]
[348061307,1736289060911,-500.0,0.00010609,2]
[348061308,1736289060920,-1165.84,0.00010609,2]
[348061309,1736289060930,-821.3,0.00010609,2]
[348061310,1736289060941,-500.0,0.00010609,2]
[348061311,1736289060951,-7521.47,0.00010609,2]
[348061312,1736289060961,-532.47,0.00010609,2]
[348061313,1736289060972,-650.14,0.00010609,2]
[348061314,1736289060982,-1547.09,0.00010609,2]
[348061315,1736289060994,-500.0,0.00010609,2]
[348061316,1736289061004,-571.6,0.00010609,2]
[348061317,1736289061014,-3835.85,0.00010609,2]
[348061318,1736289061023,-9981.27,0.00010609,2]
[348061319,1736289061034,-811.53,0.00010609,2]
[348061320,1736289061043,-831.03,0.00010609,2]
[348061321,1736289061053,-4892.11,0.00010609,2]
[348061322,1736289061064,-1104.75,0.00010609,2]
[348061323,1736289061074,-500.0,0.00010609,2]
[348061324,1736289061084,-1323.97,0.00010609,2]
[348061325,1736289061093,-1106.04,0.00010609,2]
[348061326,1736289061103,-966.21,0.00010609,2]
[348061327,1736289061112,-1629.82,0.00010609,2]
[348061328,1736289061122,-929.03,0.00010609,2]
[348061329,1736289061131,-623.66,0.00010609,2]
[348061330,1736289061142,-1626.87,0.00010609,2]
[348061331,1736289061154,-4948.26,0.00010609,2]
[348061332,1736289061163,-500.0,0.00010609,2]
[348061333,1736289061173,-1220.07,0.00010609,2]
[348061334,1736289061182,-2317.85,0.00010609,2]
[348061335,1736289061192,-1918.89,0.00010609,2]
[348061336,1736289061201,-500.0,0.00010609,2]
[348061337,1736289061210,-590.05,0.00010609,2]
[348061338,1736289061219,-3471.56,0.00010609,2]
[348061339,1736289061228,-773.12,0.00010609,2]
[348061340,1736289061238,-1498.26,0.00010609,2]
[348061341,1736289061248,-1043.23,0.00010609,2]
[348061342,1736289061258,-853.94,0.00010609,2]
[348061343,1736289061267,-1613.38,0.00010609,2]
[348061344,1736289061276,-500.0,0.00010609,2]
[348061345,1736289061286,-6167.82,0.00010609,2]
[348061346,1736289061295,-500.0,0.00010609,2]
[348061347,1736289061304,-697.3,0.00010609,2]
[348061348,1736289061314,-2215.76,0.00010609,2]
[348061349,1736289061323,-1550.3,0.00010609,2]
[348061350,1736289061332,-734.81,0.00010609,2]
[348061351,1736289061341,-1533.95,0.00010609,2]
[348061352,1736289061350,-5643.5,0.00010609,2]
[348061353,1736289061359,-1779.31,0.00010609,2]
[348061354,1736289061369,-710.35,0.00010609,2]
[348061355,1736289061378,-1282.73,0.00010609,2]
[348061356,1736289061387,-1200.54,0.00010609,2]
[348061357,1736289061397,-3391.47,0.00010609,2]
[348061358,1736289061406,-708.64,0.00010609,2]
[348061359,1736289061415,-1030.31,0.00010609,2]
[348061360,1736289061424,-665.31,0.00010609,2]
[348061361,1736289061434,-2731.7,0.00010609,2]
[348061362,1736289061443,-1503.47,0.00010609,2]
[348061363,1736289061453,-1245.05,0.00010609,2]
[348061364,1736289061462,-613.58,0.00010609,2]
[348061365,1736289061471,-500.0,0.00010609,2]
[348061366,1736289061481,-904.46,0.00010609,2]
[348061367,1736289061492,-765.83,0.00010609,2]
[348061368,1736289061502,-1140.25,0.00010609,2]
[348061369,1736289061513,-582.24,0.00010609,2]
[348061370,1736289061522,-500.0,0.00010609,2]
[348061371,1736289061532,-500.0,0.00010609,2]
[348061372,1736289061541,-1282.56,0.00010609,2]
[348061373,1736289061551,-1210.65,0.00010609,2]
[348061374,1736289061560,-686.85,0.00010609,2]
[348061375,1736289061570,-500.0,0.0001061,2]
[348061376,1736289061581,-500.0,0.0001061,2]
[348061377,1736289061591,-617.04,0.0001061,2]
[348061378,1736289061601,-500.0,0.0001061,2]
[348061379,1736289061610,-500.0,0.0001061,2]
[348061380,1736289061620,-500.0,0.0001061,2]
[348061381,1736289061629,-500.0,0.0001061,2]
[348061382,1736289061638,-500.0,0.0001061,2]
[348061383,1736289061648,-500.0,0.0001061,2]
[348061384,1736289061657,-500.0,0.0001061,2]
[348061385,1736289061666,-208.57,0.0001061,2]
[348061386,1736289061676,-511.88,0.0001061,2]
[348061387,1736289061686,-500.0,0.0001061,2]
[348061388,1736289061699,-500.0,0.0001061,2]
[348061389,1736289061709,-500.0,0.0001061,2]
[348061390,1736289061718,-500.0,0.0001061,2]
[348061391,1736289061727,-500.0,0.0001061,2]
[348061392,1736289061737,-500.0,0.0001061,2]
[348061393,1736289061750,-500.0,0.0001061,2]
[348061394,1736289061760,-500.0,0.0001061,2]
[348061395,1736289061769,-500.0,0.0001061,2]
[348061396,1736289061778,-500.0,0.0001061,2]
[348061397,1736289061788,-500.0,0.0001061,2]
[348061398,1736289061797,-513.67291355,0.0001061,2]
[348061399,1736289061806,-500.0,0.0001061,2]
[348061400,1736289061815,-500.0,0.0001061,2]
[348061401,1736289061824,-500.0,0.0001061,2]
[348061402,1736289061834,-500.0,0.0001061,2]
[348061403,1736289061843,-500.0,0.0001061,2]
[348061404,1736289061852,-940.18,0.0001061,2]
[348061405,1736289061861,-630.65,0.0001061,2]
[348061406,1736289061870,-500.0,0.0001061,2]
[348061407,1736289061880,-500.0,0.0001061,2]
[348061408,1736289061889,-500.0,0.0001061,2]
[348061409,1736289061898,-625.57,0.0001061,2]
[348061410,1736289061907,-500.0,0.0001061,2]
[348061411,1736289061917,-644.24,0.0001061,2]
[348061412,1736289061926,-1039.13,0.0001061,2]
[348061413,1736289061935,-656.03,0.0001061,2]
[348061414,1736289061944,-500.0,0.0001061,2]
[348061415,1736289061954,-500.0,0.0001061,2]
[348061416,1736289061964,-520.75,0.0001061,2]
[348061417,1736289061973,-542.48,0.0001061,2]
[348061418,1736289061982,-637.75,0.0001061,2]
[348061419,1736289061995,-500.0,0.0001061,2]
[348061420,1736289062005,-500.0,0.0001061,2]
[348061421,1736289062014,-1110.5,0.0001061,2]
[348061422,1736289062024,-1475.91,0.0001061,2]
[348061423,1736289062034,-500.0,0.0001061,2]
[348061424,1736289062044,-677.59,0.0001061,2]
[348061425,1736289062054,-1381.43,0.0001061,2]
[348061426,1736289062064,-913.76,0.0001061,2]
[348061427,1736289062073,-500.0,0.0001061,2]
[348061428,1736289062083,-761.5,0.0001061,2]
[348061429,1736289062245,-1972.05,0.0001061,2]
[348061430,1736289062255,-1238.14,0.0001061,2]
[348061431,1736289062265,-500.0,0.0001061,2]
[348061432,1736289062275,-500.0,0.0001061,2]
[348061433,1736289062284,-524.35,0.0001061,2]
[348061434,1736289062293,-2487.94,0.0001061,2]
[348061435,1736289062303,-1501.55,0.0001061,2]
[348061436,1736289062312,-1495.51,0.0001061,2]
[348061437,1736289062322,-500.0,0.0001061,2]
[348061438,1736289062332,-1619.55,0.0001061,2]
[348061439,1736289062341,-516.76,0.0001061,2]
[348061440,1736289062351,-676.75,0.0001061,2]
[348061441,1736289062360,-500.0,0.0001061,2]
[348061442,1736289062370,-2032.03,0.0001061,2]
[348061443,1736289062379,-1108.9,0.0001061,2]
[348061444,1736289062389,-154.26324336,0.0001061,2]
[348061445,1736289062399,-500.0,0.0001061,2]
[348061446,1736289062408,-615.92,0.0001061,2]
[348061447,1736289062418,-549.58,0.0001061,2]
[348061448,1736289062428,-6233.52,0.0001061,2]
[348061449,1736289062438,-2790.08,0.0001061,2]
[348061450,1736289062447,-2515.07,0.0001061,2]
[348061451,1736289062457,-4426.47,0.0001061,2]
[348061452,1736289062467,-2595.01,0.0001061,2]
[348061453,1736289062476,-500.0,0.00010611,2]
[348061454,1736289062486,-1327.37,0.00010611,2]
[348061455,1736289062498,-500.0,0.00010611,2]
[348061456,1736289062507,-500.0,0.00010611,2]
[348061457,1736289062517,-500.0,0.00010611,2]
[348061458,1736289062526,-504.77,0.00010611,2]
[348061459,1736289062536,-500.0,0.00010611,2]
[348061460,1736289062545,-638.96,0.00010611,2]
[348061461,1736289062554,-4402.73,0.00010611,2]
[348061462,1736289062564,-500.0,0.00010611,2]
[348061463,1736289062574,-500.0,0.00010611,2]
[348061464,1736289062584,-621.59,0.00010611,2]
[348061465,1736289062594,-500.0,0.00010611,2]
[348061466,1736289062604,-685.72,0.00010611,2]
[348061467,1736289062614,-500.0,0.00010611,2]
[348061468,1736289062625,-500.0,0.00010611,2]
[348061469,1736289062635,-500.18,0.00010611,2]
[348061470,1736289062644,-500.0,0.00010611,2]
[348061471,1736289062654,-680.79,0.00010611,2]
[348061472,1736289062663,-500.0,0.00010611,2]
[348061473,1736289062672,-500.0,0.00010611,2]
[348061474,1736289062681,-500.0,0.00010611,2]
[348061475,1736289062691,-664.13,0.00010611,2]
[348061476,1736289062699,-500.0,0.00010611,2]
[348061477,1736289062708,-570.75,0.00010611,2]
[348061478,1736289062720,-500.0,0.00010611,2]
[348061479,1736289062729,-1832.42,0.00010611,2]
[348061480,1736289062738,-500.0,0.00010611,2]
[348061481,1736289062751,-613.0,0.00010611,2]
[348061482,1736289062760,-212.32,0.00010611,2]
[348061483,1736289062770,-500.0,0.00010611,2]
[348061484,1736289062779,-804.07,0.00010611,2]
[348061485,1736289062788,-500.0,0.00010611,2]
[348061486,1736289062798,-1897.88,0.00010611,2]
[348061487,1736289062807,-500.0,0.00010611,2]
[348061488,1736289062816,-500.0,0.00010611,2]
[348061489,1736289062825,-906.61,0.00010611,2]
[348061490,1736289062834,-792.63,0.00010611,2]
[348061491,1736289062843,-500.0,0.00010611,2]
[348061492,1736289062852,-500.0,0.00010611,2]
[348061493,1736289062862,-500.0,0.00010611,2]
[348061494,1736289062871,-500.0,0.00010611,2]
[348061495,1736289062880,-857.24,0.00010611,2]
[348061496,1736289062889,-500.0,0.00010611,2]
[348061497,1736289062898,-500.0,0.00010611,2]
[348061498,1736289062907,-500.0,0.00010611,2]
[348061499,1736289062916,-500.0,0.00010611,2]
[348061500,1736289062926,-500.0,0.00010611,2]
[348061501,1736289062935,-500.0,0.00010611,2]
[348061502,1736289062944,-500.0,0.00010611,2]
[348061503,1736289062954,-2105.46,0.00010611,2]
[348061504,1736289062963,-571.73,0.00010611,2]
[348061505,1736289062972,-500.0,0.00010611,2]
[348061506,1736289062981,-500.0,0.00010611,2]
[348061507,1736289062992,-500.0,0.00010611,2]
[348061508,1736289063002,-500.0,0.00010611,2]
[348061509,1736289063012,-718.77,0.00010611,2]
[348061510,1736289063021,-1259.21,0.00010611,2]
[348061511,1736289063032,-500.0,0.00010611,2]
[348061512,1736289063043,-500.0,0.00010611,2]
[348061513,1736289063053,-151.0,0.00010611,2]
[348061514,1736289063065,-500.0,0.00010611,2]
[348061515,1736289063076,-500.0,0.00010611,2]
[348061516,1736289063086,-1308.87,0.00010611,2]
[348061517,1736289063096,-500.0,0.00010611,2]
[348061518,1736289063106,-1042.96,0.00010611,2]
[348061519,1736289063116,-500.0,0.00010611,2]
[348061520,1736289063126,-782.24,0.00010611,2]
[348061521,1736289063135,-500.0,0.00010611,2]
[348061522,1736289063145,-500.0,0.00010611,2]
[348061523,1736289063155,-615.22,0.00010611,2]
[348061524,1736289063165,-500.0,0.00010611,2]
[348061525,1736289063175,-1859.46,0.00010611,2]
[348061526,1736289063185,-500.0,0.00010611,2]
[348061527,1736289063194,-675.14,0.00010611,2]
[348061528,1736289063204,-500.0,0.00010611,2]
[348061529,1736289063213,-500.0,0.00010611,2]
[348061530,1736289063223,-2418.79,0.00010611,2]
[348061531,1736289063233,-500.0,0.00010611,2]
[348061532,1736289063243,-500.0,0.00010611,2]
[348061533,1736289063253,-661.7,0.00010611,2]
[348061534,1736289063262,-405.89,0.00010611,2]
[348061535,1736289063273,-500.0,0.00010611,2]
[348061536,1736289063282,-2423.21,0.00010611,2]
[348061537,1736289063292,-500.0,0.00010611,2]
[348061538,1736289063302,-500.0,0.00010611,2]
[348061539,1736289063312,-586.99,0.00010611,2]
[348061540,1736289063321,-4462.39,0.00010611,2]
[348061541,1736289063331,-500.0,0.00010611,2]
[348061542,1736289063340,-651.73,0.00010611,2]
[348061543,1736289063350,-500.0,0.00010611,2]
[348061544,1736289063359,-500.0,0.00010611,2]
[348061545,1736289063369,-808.12,0.00010611,2]
[348061546,1736289063379,-500.0,0.00010611,2]
[348061547,1736289063390,-8818.82,0.00010611,2]
[348061548,1736289063399,-500.0,0.00010611,2]
[348061549,1736289063409,-500.0,0.00010611,2]
[348061550,1736289063419,-500.0,0.00010611,2]
[348061551,1736289063429,-500.0,0.00010611,2]
[348061552,1736289063440,-593.7,0.00010611,2]
[348061553,1736289063450,-500.0,0.00010611,2]
[348061554,1736289063460,-500.0,0.00010611,2]
[348061555,1736289063470,-500.0,0.00010611,2]
[348061556,1736289063480,-500.0,0.00010611,2]
[348061557,1736289063489,-500.0,0.00010611,2]
[348061558,1736289063500,-500.0,0.00010611,2]
[348061559,1736289063510,-500.0,0.00010611,2]
[348061560,1736289063521,-500.0,0.00010611,2]
[348061561,1736289063531,-1836.91,0.00010611,2]
[348061562,1736289063540,-500.0,0.00010611,2]
[348061563,1736289063550,-633.65,0.00010611,2]
[348061564,1736289063561,-2228.59,0.00010611,2]
[348061565,1736289063571,-500.0,0.00010611,2]
[348061566,1736289063582,-500.0,0.00010611,2]
[348061567,1736289063592,-500.0,0.00010611,2]
[348061568,1736289063604,-500.0,0.00010611,2]
[348061569,1736289063615,-1333.48,0.00010611,2]
[348061570,1736289063625,-500.0,0.00010611,2]
[348061571,1736289063635,-500.0,0.00010611,2]
[348061572,1736289063645,-500.0,0.00010611,2]
[348061573,1736289063655,-1660.4,0.00010611,2]
[348061574,1736289063665,-500.0,0.00010611,2]
[348061575,1736289063674,-500.0,0.00010611,2]
[348061576,1736289063684,-500.0,0.00010611,2]
[348061577,1736289063694,-500.0,0.00010611,2]
[348061578,1736289063705,-1442.26,0.00010611,2]
[348061579,1736289063714,-665.95,0.00010611,2]
[348061580,1736289063725,-2971.7,0.00010611,2]
[348061581,1736289063734,-3292.23,0.00010611,2]
[348061582,1736289063744,-275.94,0.00010611,2]
[348061583,1736289063754,-500.0,0.00010611,2]
[348061584,1736289063764,-500.0,0.00010611,2]
[348061585,1736289063774,-1136.5,0.00010611,2]
[348061586,1736289063784,-500.0,0.00010611,2]
[348061587,1736289063794,-3763.8,0.00010611,2]
[348061588,1736289063804,-500.0,0.00010611,2]
[348061589,1736289063814,-1241.84,0.00010611,2]
[348061590,1736289063823,-500.0,0.00010611,2]
[348061591,1736289063834,-616.17,0.00010611,2]
[348061592,1736289063844,-500.0,0.00010611,2]
[348061593,1736289063854,-656.43,0.00010611,2]
[348061594,1736289063864,-4052.59,0.00010611,2]
[348061595,1736289063873,-1632.46,0.00010611,2]
[348061596,1736289063883,-500.0,0.00010611,2]
[348061597,1736289063893,-151.0,0.00010612,2]
[348061598,1736289063903,-500.0,0.00010647,2]
[348061599,1736289063913,-3044.23,0.00010647,2]
[348061600,1736289063923,-1490.61,0.00010647,2]
[348061601,1736289063933,-2775.44,0.00010647,2]
[348061602,1736289063943,-500.0,0.00010647,2]
[348061603,1736289063954,-1335.59,0.00010647,2]
[348061604,1736289063964,-1436.91,0.00010647,2]
[348061605,1736289063975,-3430.74,0.00010647,2]
[348061606,1736289063984,-503.24,0.00010647,2]
[348061607,1736289063998,-500.0,0.00010647,2]
[348061608,1736289064009,-2456.05,0.00010647,2]
[348061609,1736289064020,-1619.7,0.00010647,2]
[348061610,1736289064031,-1820.41,0.00010647,2]
[348061611,1736289064041,-797.0,0.00010647,2]
[348061612,1736289064051,-2919.25,0.00010647,2]
[348061613,1736289064061,-500.0,0.00010647,2]
[348061614,1736289064072,-500.0,0.00010647,2]
[348061615,1736289064083,-1052.58,0.00010647,2]
[348061616,1736289064093,-1473.52,0.00010647,2]
[348061617,1736289064103,-868.91,0.00010647,2]
[348061618,1736289064113,-500.0,0.00010647,2]
[348061619,1736289064123,-1430.85,0.00010647,2]
[348061620,1736289064134,-287.13,0.00010647,2]
[348061621,1736289064143,-1817.85,0.00010647,2]
[348061622,1736289064153,-150.0,0.00010658,2]
[348061623,1736289064163,-906.24,0.00010658,2]
[348061624,1736289064173,-437.01,0.00010658,2]
[348061625,1736289064183,-150.0,0.00010658,2]
[348061626,1736289064194,-150.0,0.00010658,2]
[348061627,1736289064204,-182.89,0.00010658,2]
[348061628,1736289064214,-437.01,0.00010658,2]
[348061629,1736289064223,-182.89,0.00010658,2]
[348061630,1736289064234,-150.0,0.00010658,2]
[348061631,1736289064247,-150.0,0.00010658,2]
[348061632,1736289064257,-150.0,0.00010658,2]
[348061633,1736289064268,-150.0,0.00010658,2]
[348061634,1736289064278,-182.89,0.00010658,2]
[348061635,1736289064289,-150.0,0.00010658,2]
[348061636,1736289064299,-150.0,0.00010658,2]
[348061637,1736289064309,-444.37,0.00010658,2]
[348061638,1736289064319,-150.0,0.00010658,2]
[348061639,1736289064329,-150.0,0.00010658,2]
[348061640,1736289064339,-356.86,0.00010658,2]
[348061641,1736289064349,-500.0,0.00010684,2]
[348061642,1736289064358,-150.0,0.00010693,2]
[348061643,1736289064368,-150.0,0.00010693,2]
[348061644,1736289064378,-204.956,0.00010693,2]
[348061645,1736289064388,-199.236,0.00010693,2]
[348061646,1736289064398,-154.171,0.00010693,2]
[348061647,1736289064410,-152.0,0.00010703,5]
[348061648,1736289064420,-151.0,0.00010706,2]
[348061649,1736289064429,-25242.19600372,0.000108,2]
[348061650,1736289064438,-151.0,0.00010821,2]
[348061651,1736289064448,-151.0,0.00010821,2]
[348061652,1736289064458,-500.0,0.00010821,2]
[348061653,1736289064468,-500.0,0.0001088,2]
[348061654,1736289064479,-2585.41,0.00010883,2]
[348061655,1736289064488,-4705.84,0.00010883,2]
[348061656,1736289064499,-3118.54,0.00010883,2]
[348061657,1736289064510,-1801.557458,0.00010883,2]
[348061658,1736289064520,-1836.96,0.00010883,2]
[348061659,1736289064530,-1984.669487,0.00010883,2]
[348061660,1736289064539,-6376.17,0.00010883,2]
[348061661,1736289064549,-1580.82,0.00010883,2]
[348061662,1736289064559,-1179.69,0.00010883,2]
[348061663,1736289064568,-1494.36,0.00010883,2]
[348061664,1736289064578,-509.03,0.00010883,2]
[348061665,1736289064589,-5128.61,0.00010883,2]
[348061666,1736289064601,-500.0,0.00010883,2]
[348061667,1736289064611,-2074.97,0.00010883,2]
[348061668,1736289064622,-1924.25,0.00010883,2]
[348061669,1736289064633,-500.0,0.00010883,2]
[348061670,1736289064644,-770.45,0.00010883,2]
[348061671,1736289064654,-500.0,0.00010883,2]
[348061672,1736289064665,-887.56,0.00010883,2]
[348061673,1736289064730,-500.0,0.00010883,2]
[348061674,1736289064740,-500.0,0.00010883,2]
[348061675,1736289064751,-1085.95,0.00010883,2]
[348061676,1736289064761,-500.0,0.00010883,2]
[348061677,1736289064771,-1463.6,0.00010883,2]
[348061678,1736289064781,-871.03,0.00010883,2]
[348061679,1736289064790,-1018.34,0.00010883,2]
[348061680,1736289064799,-905.35,0.00010883,2]
[348061681,1736289064809,-500.0,0.00010883,2]
[348061682,1736289064819,-978.09,0.00010883,2]
[348061683,1736289064828,-1358.51,0.00010883,2]
[348061684,1736289064837,-774.28,0.00010883,2]
[348061685,1736289064846,-500.0,0.00010883,2]
[348061686,1736289064856,-665.14,0.00010883,2]
[348061687,1736289064866,-500.0,0.00010883,2]
[348061688,1736289064876,-873.23,0.00010883,2]
[348061689,1736289064885,-500.0,0.00010883,2]
[348061690,1736289064894,-726.78,0.00010883,2]
[348061691,1736289064903,-569.3,0.00010883,2]
[348061692,1736289064913,-500.0,0.00010883,2]
[348061693,1736289064922,-666.05,0.00010883,2]
[348061694,1736289064932,-1177.5,0.00010883,2]
[348061695,1736289064941,-1888.16,0.00010883,2]
[348061696,1736289064950,-500.0,0.00010883,2]
[348061697,1736289064959,-975.4,0.00010883,2]
[348061698,1736289064968,-500.0,0.00010883,2]
[348061699,1736289064978,-1061.84,0.00010883,2]
[348061700,1736289064990,-502.53,0.00010883,2]
[348061701,1736289065002,-758.25,0.00010883,2]
[348061702,1736289065011,-543.41,0.00010883,2]
[348061703,1736289065021,-500.0,0.00010883,2]
[348061704,1736289065031,-500.0,0.00010883,2]
[348061705,1736289065041,-500.0,0.00010883,2]
[348061706,1736289065051,-556.77,0.00010883,2]
[348061707,1736289065063,-2135.18,0.00010883,2]
[348061708,1736289065075,-1249.43,0.00010883,2]
[348061709,1736289065086,-630.23,0.00010883,2]
[348061710,1736289065096,-1250.3,0.00010883,2]
[348061711,1736289065105,-725.03,0.00010883,2]
[348061712,1736289065115,-784.82,0.00010883,2]
[348061713,1736289065124,-563.18,0.00010883,2]
[348061714,1736289065133,-901.02,0.00010883,2]
[348061715,1736289065143,-965.12,0.00010883,2]
[348061716,1736289065153,-2536.85,0.00010883,2]
[348061717,1736289065162,-500.34,0.00010883,2]
[348061718,1736289065172,-341.46,0.00010883,2]
[348061719,1736289065182,-500.0,0.00010883,2]
[348061720,1736289065191,-500.0,0.00010883,2]
[348061721,1736289065201,-1408.99,0.00010883,2]
[348061722,1736289065211,-694.44,0.00010883,2]
[348061723,1736289065221,-500.0,0.00010883,2]
[348061724,1736289065231,-500.0,0.00010883,2]
[348061725,1736289065240,-714.85,0.00010883,2]
[348061726,1736289065250,-1161.61,0.00010883,2]
[348061727,1736289065259,-653.73,0.00010883,2]
[348061728,1736289065268,-1272.55,0.00010883,2]
[348061729,1736289065278,-1767.14,0.00010883,2]
[348061730,1736289065287,-852.68,0.00010883,2]
[348061731,1736289065299,-603.18,0.00010883,2]
[348061732,1736289065309,-798.2,0.00010883,2]
[348061733,1736289065319,-500.0,0.00010883,2]
[348061734,1736289065329,-500.0,0.00010883,2]
[348061735,1736289065339,-581.59,0.00010883,2]
[348061736,1736289065350,-1145.93,0.00010883,2]
[348061737,1736289065358,-500.0,0.00010883,2]
[348061738,1736289065365,-692.23,0.00010883,2]
[348061739,1736289065372,-621.05,0.00010883,2]
[348061740,1736289065380,-1335.35,0.00010883,2]
[348061741,1736289065389,-4113.23,0.00010883,2]
[348061742,1736289065400,-505.81,0.00010883,2]
[348061743,1736289065410,-676.58,0.00010883,2]
[348061744,1736289065420,-750.36,0.00010883,2]
[348061745,1736289065430,-920.62,0.00010883,2]
[348061746,1736289065440,-616.41,0.00010883,2]
[348061747,1736289065450,-500.0,0.00010883,2]
[348061748,1736289065459,-938.14,0.00010883,2]
[348061749,1736289065468,-581.9,0.00010883,2]